bitfinex-derivatives/quotes_ETHF0:USTF0_20220106
["timestamp","ask_amount","ask_price","bid_price","bid_amount"]
[1641475789646,1.2443508,3378.4,3378.0,2.464772]
[1641475789846,1.2443508,3378.4,3378.1,0.384472]
[1641475790046,1.2443508,3378.4,3378.2,0.397182]
[1641475790246,1.50662719,3378.6,3378.2,1.281782]
[1641475790650,0.99946066,3378.7,3378.3,12.74]
[1641475790847,0.99946066,3378.7,3378.2,2.76135429]
[1641475790848,0.99946066,3378.7,3378.5,12.74]
[1641475791050,0.99946066,3378.7,3378.6,0.459982]
[1641475791450,0.99946066,3378.7,3378.6,2.861954]
[1641475791650,1.95222719,3379.2,3378.7,12.74]
[1641475791852,1.99834519,3379.2,3378.7,0.384472]
[1641475792052,0.491718,3379.2,3378.7,0.781654]
[1641475792653,0.4456,3379.2,3378.7,0.781654]
[1641475792853,0.491718,3379.2,3378.7,0.781654]
[1641475793053,0.491718,3379.2,3378.6,2.00479]
[1641475793256,1.97165815,3379.2,3378.1,2.0]
[1641475793465,2.00479,3378.9,3378.1,2.0]
[1641475793660,2.00479,3378.9,3378.2,0.397182]
[1641475793857,2.00479,3378.9,3378.3,0.384472]
[1641475794257,2.00479,3378.9,3378.4,0.397182]
[1641475794457,1.47994015,3379.2,3378.4,0.397182]
[1641475794659,3.95801719,3379.6,3378.5,12.74]
[1641475795461,2.45139,3379.6,3378.8,2.00479]
[1641475795761,0.046118,3379.5,3378.9,0.397182]
[1641475795960,2.45139,3379.6,3379.0,0.384472]
[1641475796162,2.45139,3379.6,3379.1,0.397182]
[1641475796359,2.00479,3379.6,3379.2,1.0]
[1641475796761,2.00479,3379.6,3379.3,0.397182]
[1641475796958,2.00479,3379.6,3379.4,0.459982]
[1641475797160,2.00479,3379.6,3379.5,0.397182]
[1641475797359,1.9508356,3379.9,3379.5,13.137182]
[1641475797559,2.3867356,3379.9,3379.5,17.146762]
[1641475798161,1.94252719,3379.9,3379.5,17.146762]
[1641475798562,0.4359,3379.9,3379.5,17.146762]
[1641475799963,0.4359,3379.9,3379.6,1.5]
[1641475800166,0.4359,3379.9,3379.7,13.981636]
[1641475800366,1.24891961,3380.3,3379.8,15.71873651]
[1641475800565,1.24891961,3380.3,3380.2,14.24]
[1641475800765,0.44969053,3380.5,3380.2,14.24]
[1641475801065,1.50662719,3380.6,3380.4,15.71838891]
[1641475801465,1.50662719,3380.6,3380.5,4.00958]
[1641475801667,1.50662719,3380.6,3380.5,17.701662]
[1641475801869,0.99896349,3380.8,3380.5,18.161644]
[1641475802268,0.99896349,3380.8,3380.6,0.384472]
[1641475802467,0.99896349,3380.8,3380.7,13.137182]
[1641475802667,0.99896349,3380.8,3380.7,0.857164]
[1641475802968,0.99896349,3380.8,3380.7,13.597164]
[1641475803669,31.369,3381.7,3380.7,0.459982]
[1641475803670,0.046118,3381.1,3380.7,0.459982]
[1641475803871,0.99896349,3381.2,3380.6,0.384472]
[1641475804269,0.99896349,3381.2,3380.6,0.781654]
[1641475804469,1.47889615,3381.6,3380.6,0.384472]
[1641475804970,1.50662719,3380.9,3380.6,0.384472]
[1641475805168,1.50662719,3380.9,3380.7,0.857164]
[1641475805569,1.87178527,3381.2,3380.8,12.74]
[1641475805771,3.45797083,3381.9,3381.2,12.74]
[1641475805970,3.69404995,3382.4,3381.7,12.74]
[1641475806169,3.69404995,3382.4,3381.7,13.5956]
[1641475806372,3.69404995,3382.3,3381.9,12.74]
[1641475806669,3.45037217,3381.8,3381.7,13.5956]
[1641475806870,3.45037217,3381.8,3381.7,14.055582]
[1641475807070,3.45037217,3381.8,3381.7,1.315582]
[1641475807270,3.45037217,3381.8,3381.7,0.459982]
[1641475807470,3.45037217,3381.8,3381.7,4.866744]
[1641475808071,1.85635618,3381.9,3381.7,17.991216]
[1641475808672,8.97179,3383.4,3381.7,17.991216]
[1641475809471,6.00479,3383.0,3382.2,2.00479]
[1641475809671,0.046118,3382.9,3382.2,2.00479]
[1641475810273,1.546118,3382.9,3382.2,2.00479]
[1641475810673,0.046118,3382.9,3382.2,2.00479]
[1641475811075,0.09349711,3382.8,3382.2,2.00479]
[1641475811274,0.046118,3382.7,3382.2,2.00479]
[1641475812678,0.046118,3382.7,3382.2,2.401972]
[1641475813075,0.09349711,3382.6,3382.2,2.401972]
[1641475814378,0.046118,3382.7,3382.2,2.401972]
[1641475814677,1.5,3382.3,3381.7,2.00479]
[1641475814876,1.5,3382.0,3380.7,1.47847197]
[1641475815079,2.2533,3382.0,3380.7,1.47847197]
[1641475815277,0.7533,3382.0,3380.7,1.47847197]
[1641475815479,3.50479,3381.8,3381.0,2.00479]
[1641475815677,4.046118,3381.7,3380.7,3.48326197]
[1641475816080,1.5,3380.9,3379.6,1.47878681]
[1641475816281,1.5,3380.9,3379.4,34.34226707]
[1641475816282,2.2679,3380.9,3379.5,12.74]
[1641475816479,0.7679,3380.9,3379.5,14.24]
[1641475817079,0.7679,3380.9,3379.5,12.74]
[1641475817480,1.47896614,3381.5,3380.5,2.00479]
[1641475817681,2.00479,3381.3,3380.2,2.00479]
[1641475818081,2.82679,3381.3,3380.2,2.00479]
[1641475819285,2.82679,3381.3,3380.3,12.74]
[1641475819485,2.82679,3381.3,3380.2,2.00479]
[1641475820383,1.5,3381.2,3380.2,2.00479]
[1641475820584,2.82679,3381.3,3380.2,2.00479]
[1641475821783,2.00479,3381.3,3380.2,2.00479]
[1641475821984,2.00479,3381.3,3380.3,12.74]
[1641475822783,2.00479,3381.8,3381.3,0.99521]
[1641475822985,0.046118,3381.7,3381.3,0.99521]
[1641475823185,6.216618,3381.7,3381.3,0.99521]
[1641475823384,1.5,3381.5,3381.3,0.99521]
[1641475823585,0.046118,3381.4,3381.3,0.99521]
[1641475823784,0.046118,3381.4,3380.7,2.00479]
[1641475824383,0.046118,3381.4,3380.7,2.389262]
[1641475825986,0.046118,3381.4,3380.7,2.00479]
[1641475826987,1.546118,3381.4,3380.7,2.00479]
[1641475827390,0.046118,3381.4,3380.7,2.00479]
[1641475827590,2.00479,3381.2,3380.7,2.00479]
[1641475827790,0.046118,3381.1,3380.7,2.00479]
[1641475829591,4.98418718,3380.8,3379.3,2.00479]
[1641475829793,1.5,3379.8,3379.0,1.47922429]
[1641475829991,0.046118,3379.7,3379.0,1.47922429]
[1641475830190,0.046118,3379.7,3379.1,0.384472]
[1641475830991,0.8046,3379.8,3379.2,0.397182]
[1641475831192,1.47962264,3380.0,3379.2,0.397182]
[1641475831594,2.00479,3380.3,3379.3,2.00479]
[1641475833193,1.47956791,3380.1,3379.3,2.00479]
[1641475833392,0.046118,3380.0,3379.3,2.00479]
[1641475833594,2.00479,3379.8,3379.3,2.00479]
[1641475834101,0.046118,3379.7,3379.3,2.00479]
[1641475834496,2.00479,3379.8,3379.3,2.401972]
[1641475834694,2.00479,3380.3,3379.3,2.401972]
[1641475835696,2.00479,3379.9,3379.3,2.401972]
[1641475835896,0.046118,3379.8,3379.3,2.401972]
[1641475836899,0.922718,3379.8,3379.3,2.00479]
[1641475837499,1.5,3379.6,3378.3,1.47951756]
[1641475837698,2.00479,3379.3,3378.5,2.00479]
[1641475837898,0.046118,3379.2,3378.6,0.781654]
[1641475840501,32.8352,3379.8,3378.7,12.74]
[1641475840901,2.00479,3379.9,3378.7,12.74]
[1641475841204,2.00479,3379.9,3378.9,12.74]
[1641475841401,2.00479,3379.9,3378.8,14.21927025]
[1641475841602,2.00479,3379.9,3379.2,2.00479]
[1641475841901,0.07843133,3379.7,3379.3,1.61546462]
[1641475842102,1.0623168,3379.7,3379.5,0.96892897]
[1641475843103,0.98388547,3379.7,3379.5,1.36611097]
[1641475843303,1.0623168,3379.8,3379.6,0.96892897]
[1641475844404,0.98388547,3379.8,3379.6,0.96892897]
[1641475844603,2.050908,3379.9,3379.2,2.00479]
[1641475844804,2.050908,3379.9,3379.2,2.401972]
[1641475845605,2.050908,3379.9,3379.2,2.786444]
[1641475845803,2.050908,3379.9,3379.2,2.401972]
[1641475846407,2.050908,3379.9,3379.2,2.00479]
[1641475847409,2.050908,3379.9,3379.2,2.401972]
[1641475848809,2.050908,3379.9,3379.2,2.00479]
[1641475849211,1.5,3379.8,3379.2,2.00479]
[1641475849410,2.2158,3379.8,3379.2,2.00479]
[1641475849614,0.046118,3379.7,3379.2,2.00479]
[1641475857021,1.5,3379.4,3378.5,2.00479]
[1641475857220,1.5,3379.4,3378.3,0.73970796]
[1641475857221,4.0,3379.0,3378.3,0.73970796]
[1641475857420,0.046118,3378.9,3378.3,0.73970796]
[1641475857820,2.00479,3378.4,3378.3,0.73970796]
[1641475858020,2.917308,3378.4,3378.3,0.73970796]
[1641475858223,2.917308,3378.4,3378.1,0.96892897]
[1641475858224,6.917308,3378.4,3378.1,0.96892897]
[1641475858424,1.5,3378.3,3377.6,0.74197792]
[1641475858623,0.046118,3378.2,3377.6,0.74197792]
[1641475859027,1.546118,3378.2,3377.4,0.98930389]
[1641475859624,4.73681,3378.1,3377.4,0.98930389]
[1641475859824,2.00479,3377.6,3377.1,3.22307262]
[1641475860325,2.00479,3377.6,3377.1,2.00479]
[1641475860326,0.046118,3377.5,3377.1,2.00479]
[1641475860524,2.00479,3377.6,3377.2,0.397182]
[1641475861524,2.050908,3377.6,3377.1,2.00479]
[1641475861724,2.896608,3377.6,3377.1,2.00479]
[1641475862523,2.896608,3377.6,3376.4,3.22307262]
[1641475862524,2.896608,3377.6,3376.4,1.21828262]
[1641475862723,1.5,3377.3,3376.4,1.21828262]
[1641475863122,4.0,3377.2,3376.4,1.21828262]
[1641475863326,0.046118,3377.1,3376.4,1.21828262]
[1641475863525,1.5,3377.0,3376.3,0.47087861]
[1641475863725,1.5,3377.3,3376.3,0.47087861]
[1641475863925,2.00479,3376.9,3376.3,0.47087861]
[1641475864126,0.046118,3376.8,3376.3,0.47087861]
[1641475864326,0.046118,3376.8,3376.3,1.25253261]
[1641475864727,0.046118,3376.8,3376.3,0.86806061]
[1641475865024,2.00479,3376.9,3376.3,0.86806061]
[1641475865427,2.00479,3376.9,3376.3,13.137182]
[1641475865828,2.00479,3376.9,3376.3,14.637182]
[1641475866025,2.00479,3376.9,3376.3,0.397182]
[1641475866427,2.00479,3376.9,3376.3,0.781654]
[1641475866626,2.050908,3376.9,3376.4,0.47087861]
[1641475866827,0.04186615,3376.9,3376.4,0.47087861]
[1641475867230,1.5,3376.7,3376.4,0.47087861]
[1641475867433,0.041866,3376.6,3376.4,0.47087861]
[1641475867629,0.041866,3376.6,3376.1,2.00479]
[1641475869034,0.041866,3376.6,3376.1,2.786444]
[1641475869434,1.48098124,3376.9,3376.1,2.786444]
[1641475870435,0.041866,3376.8,3376.1,2.00479]
[1641475870634,0.845166,3376.8,3376.1,2.00479]
[1641475870835,1.48104923,3376.7,3376.1,2.00479]
[1641475871037,0.041866,3376.6,3376.1,2.00479]
[1641475875643,0.041866,3376.6,3376.5,1.21828262]
[1641475876044,0.041866,3376.6,3376.5,1.67826462]
[1641475876242,0.041866,3376.6,3376.5,1.21828262]
[1641475876644,1.541866,3376.6,3376.5,1.21828262]
[1641475876846,1.70439114,3376.6,3376.5,1.21828262]
[1641475877742,3.18551057,3376.6,3376.5,1.21828262]
[1641475877944,3.18551057,3376.6,3376.0,1.78632551]
[1641475877945,6.18599421,3376.6,3376.3,1.68924496]
[1641475878143,5.5,3376.4,3375.8,1.78632551]
[1641475878345,1.5,3375.9,3375.5,2.44142538]
[1641475878546,1.5,3375.7,3375.6,4.978e-05]
[1641475878743,3.02334529,3375.7,3375.6,4.978e-05]
[1641475878945,7.76317229,3375.7,3375.6,4.978e-05]
[1641475879146,7.76317229,3375.7,3375.0,3.3502772]
[1641475879345,1.5,3375.5,3375.0,3.3502772]
[1641475879546,0.041866,3375.4,3375.0,3.3502772]
[1641475879745,4.244372,3375.4,3374.8,2.50580099]
[1641475879945,2.00479,3374.9,3374.8,2.50580099]
[1641475880146,2.899656,3374.9,3374.8,2.50580099]
[1641475880347,2.899656,3374.9,3374.8,1.91760099]
[1641475880745,2.899656,3374.9,3374.5,3.04900653]
[1641475881348,3.65352598,3374.9,3374.4,0.397182]
[1641475882248,3.61165998,3374.9,3374.4,0.781654]
[1641475882446,1.60686998,3374.9,3374.4,0.781654]
[1641475882649,0.75386998,3375.1,3374.4,2.281654]
[1641475882946,0.75386998,3375.1,3374.4,13.521654]
[1641475883449,0.75386998,3375.1,3374.4,0.781654]
[1641475883654,1.00515997,3375.4,3374.5,4.54900653]
[1641475883850,1.00515997,3375.8,3375.1,1.5]
[1641475884052,3.07451026,3377.0,3375.7,5.50958]
[1641475884249,3.07451026,3377.0,3376.8,1.5]
[1641475884250,1.36851026,3377.0,3376.8,1.5]
[1641475884452,1.36851026,3377.0,3376.9,0.844454]
[1641475884950,1.36851026,3377.0,3376.8,0.6372]
[1641475885151,1.5,3377.2,3375.8,12.74]
[1641475885152,4.5465,3377.2,3375.8,12.74]
[1641475885352,1.00491206,3376.3,3375.8,12.74]
[1641475885953,1.00491206,3376.3,3376.2,2.00479]
[1641475886155,1.00491206,3376.3,3376.2,2.464772]
[1641475886350,2.00479,3377.0,3376.2,2.464772]
[1641475886551,0.397182,3376.9,3376.2,2.464772]
[1641475887252,0.397182,3376.9,3376.2,2.00479]
[1641475887952,1.25608936,3376.8,3376.3,1.24835497]
[1641475888153,0.397182,3376.7,3376.3,1.24835497]
[1641475890955,1.25608936,3376.9,3376.3,1.24835497]
[1641475891758,1.65327136,3376.9,3376.4,1.24835497]
[1641475892257,3.15327136,3376.9,3376.4,1.24835497]
[1641475892456,3.15327136,3376.9,3376.1,1.49802597]
[1641475892457,1.5,3376.5,3376.1,1.49802597]
[1641475892657,0.397182,3376.4,3376.2,1.49802597]
[1641475892856,1.48125984,3376.3,3376.2,1.49802597]
[1641475893157,0.397182,3376.2,3375.9,1.87256523]
[1641475893360,0.5,3376.0,3375.9,1.87256523]
[1641475893558,0.5,3376.0,3375.7,2.49670995]
[1641475893759,0.397182,3375.9,3375.5,1.50002918]
[1641475893961,0.897182,3375.9,3375.5,1.50002918]
[1641475894158,2.00479,3375.8,3375.5,1.50002918]
[1641475894358,2.74929,3375.8,3375.5,1.50002918]
[1641475894558,2.74929,3375.8,3375.3,2.25703723]
[1641475894859,3.75440138,3375.8,3375.4,1.0]
[1641475895160,0.397182,3375.7,3375.4,1.0]
[1641475896563,4.397182,3375.7,3375.1,2.87256523]
[1641475896761,0.5,3375.2,3375.1,2.81396523]
[1641475896963,0.897182,3375.2,3375.1,2.81396523]
[1641475897561,4.0,3375.7,3375.1,2.81396523]
[1641475897761,0.397182,3375.5,3374.6,3.08305567]
[1641475897962,4.0,3374.7,3374.5,2.56420261]
[1641475898162,0.397182,3374.6,3374.5,2.56420261]
[1641475898365,0.416937,3374.6,3374.5,2.56420261]
[1641475898765,1.89898935,3374.6,3374.5,2.56420261]
[1641475899166,1.89898935,3374.6,3374.5,0.62826537]
[1641475899363,1.89898935,3374.6,3373.9,5.3550672]
[1641475899764,1.89898935,3374.6,3373.9,2.00479]
[1641475900264,0.416937,3374.6,3373.9,3.50479]
[1641475900664,0.416937,3374.6,3373.9,2.00479]
[1641475902663,8.08091277,3374.7,3374.6,0.583063]
[1641475903065,11.325416,3374.7,3373.1,1.5]
[1641475903268,0.0247,3373.8,3373.1,1.4753]
[1641475903466,1.48243903,3373.6,3372.0,32.6006]
[1641475903666,1.50713903,3373.6,3372.7,1.4753]
[1641475903867,1.48243903,3373.6,3372.4,1.4753]
[1641475904067,1.50713903,3373.6,3372.4,1.4753]
[1641475904269,2.00479,3373.1,3372.4,2.00479]
[1641475904467,2.88329,3373.1,3373.0,1.4753]
[1641475904667,2.88329,3373.1,3373.0,1.935282]
[1641475904871,2.88329,3373.1,3373.0,16.572464]
[1641475904872,0.8785,3373.1,3373.0,16.572464]
[1641475905069,5.20667599,3379.7,3373.0,17.313864]
[1641475905267,12.74,3375.9,3374.5,1.4753]
[1641475905468,1.26766284,3374.8,3374.4,0.7507]
[1641475905668,2.51382717,3374.7,3374.4,2.226]
[1641475906568,2.51382717,3374.7,3374.4,0.7507]
[1641475906769,1.48198426,3374.6,3374.5,0.47142965]
[1641475907167,6.22335626,3374.6,3374.5,0.47142965]
[1641475907370,1.48198426,3374.6,3374.5,2.40671165]
[1641475907568,2.00479,3374.9,3374.5,1.94672965]
[1641475907768,2.02949,3374.9,3374.5,0.47142965]
[1641475907970,2.02949,3374.9,3374.5,0.75370246]
[1641475908370,4.741162,3374.8,3374.5,0.75370246]
[1641475908871,4.741162,3374.8,3374.6,0.459982]
[1641475909071,4.741162,3374.8,3374.6,0.75370246]
[1641475912574,4.741162,3374.8,3374.7,0.857164]
[1641475912775,2.00479,3374.9,3374.7,0.857164]
[1641475912974,2.00479,3374.9,3374.8,1.4753]
[1641475913776,2.00479,3374.9,3374.7,0.397182]
[1641475913977,2.00479,3374.9,3374.8,0.93141165]
[1641475914178,2.00479,3374.9,3374.8,1.93490646]
[1641475914579,2.00479,3374.9,3374.8,1.47492446]
[1641475915380,2.00479,3374.9,3374.8,0.47142965]
[1641475915782,2.00479,3374.9,3374.8,0.93141165]
[1641475915979,2.00479,3374.9,3374.8,0.47142965]
[1641475916180,2.00479,3374.9,3374.8,1.94672965]
[1641475916384,2.00479,3374.9,3374.8,1.4753]
[1641475916582,2.00479,3374.9,3374.7,1.15013102]
[1641475916986,4.0,3374.8,3374.7,0.75294902]
[1641475917291,5.48208969,3374.8,3374.5,1.00349481]
[1641475917487,8.741091,3374.8,3374.5,1.00349481]
[1641475917687,8.741091,3374.8,3374.7,1.00349481]
[1641475917887,8.741091,3374.8,3374.7,9.481e-05]
[1641475918786,8.741091,3374.8,3374.5,1.22845565]
[1641475918991,8.741091,3374.8,3374.1,1.4753]
[1641475919191,1.48209408,3374.5,3374.1,1.4753]
[1641475919390,1.48209408,3374.5,3374.3,1.4753]
[1641475919588,4.223193,3374.4,3373.9,1.4753]
[1641475919788,1.48209408,3374.5,3373.9,1.4753]
[1641475919987,1.48209408,3374.5,3373.6,1.22845565]
[1641475920188,4.0,3374.2,3373.6,1.22845565]
[1641475920388,2.00479,3373.9,3373.8,1.22845565]
[1641475921389,2.43738532,3373.9,3373.8,1.68843765]
[1641475921590,2.43738532,3373.9,3373.8,0.459982]
[1641475921789,2.43738532,3373.9,3373.8,1.935282]
[1641475921990,2.43738532,3373.9,3373.5,1.22845565]
[1641475922189,2.43738532,3373.9,3373.5,2.70375565]
[1641475922590,2.43738532,3373.9,3373.6,1.22845565]
[1641475922792,2.43738532,3373.9,3373.7,0.459982]
[1641475923291,0.43259532,3373.8,3373.7,1.22845565]
[1641475924292,0.43259532,3373.8,3373.5,1.22845565]
[1641475925294,0.43259532,3373.8,3373.6,1.22845565]
[1641475925894,0.43259532,3373.8,3373.6,2.70375565]
[1641475926094,0.43259532,3373.8,3373.7,0.459982]
[1641475926293,0.43259532,3373.8,3373.7,1.935282]
[1641475928498,2.00479,3373.9,3373.7,1.935282]
[1641475931804,2.00479,3373.9,3373.7,1.4753]
[1641475932206,2.00479,3373.9,3373.8,0.459982]
[1641475932410,2.00479,3373.9,3373.7,1.4753]
[1641475932609,2.00479,3373.9,3373.1,2.00479]
[1641475932807,2.00479,3373.9,3373.6,1.4753]
[1641475933408,6.00479,3373.9,3373.6,1.4753]
[1641475933606,6.02949,3373.9,3373.2,1.4753]
[1641475933806,4.742497,3373.8,3373.2,1.4753]
[1641475934409,2.00479,3373.3,3373.2,1.4753]
[1641475934607,2.89069,3373.3,3373.2,1.4753]
[1641475935407,6.89069,3373.3,3373.2,1.4753]
[1641475935607,8.69805762,3373.3,3372.6,0.99590155]
[1641475935809,5.80760507,3372.7,3372.3,1.22845565]
[1641475936009,5.48290507,3372.7,3372.3,0.99659904]
[1641475936208,4.29975,3372.6,3372.3,0.99659904]
[1641475936410,4.00958,3372.4,3372.3,0.99659904]
[1641475937208,4.00958,3372.4,3372.1,2.40375565]
[1641475937409,4.00958,3372.4,3372.1,1.22845565]
[1641475937609,4.00958,3372.4,3372.3,1.1753]
[1641475938411,4.00958,3372.4,3372.3,1.635282]
[1641475938812,1.2570415,3373.2,3372.3,1.635282]
[1641475939013,4.3247,3373.3,3372.3,1.1753]
[1641475939014,5.07438904,3373.3,3372.3,1.1753]
[1641475939512,4.743833,3373.2,3372.3,1.1753]
[1641475939713,5.326733,3373.2,3372.3,1.1753]
[1641475940012,6.07642204,3373.2,3372.3,1.1753]
[1641475940417,2.00479,3372.6,3372.3,1.1753]
[1641475941315,2.00479,3372.6,3372.1,1.1753]
[1641475941921,2.00479,3372.6,3372.3,1.1753]
[1641475942119,2.00479,3372.6,3372.4,1.1753]
[1641475943521,2.00479,3372.6,3372.5,0.459982]
[1641475943721,2.00479,3372.6,3372.4,1.1753]
[1641475944922,2.00479,3372.6,3372.5,0.459982]
[1641475945125,2.00479,3372.6,3372.0,0.384472]
[1641475945327,2.00479,3372.6,3372.0,1.559772]
[1641475945527,2.00479,3372.6,3372.1,0.397182]
[1641475945925,2.00479,3372.6,3372.3,1.1753]
[1641475946125,2.00479,3372.6,3372.5,1.1753]
[1641475947525,2.00479,3372.6,3372.2,1.572482]
[1641475947725,2.00479,3372.6,3372.0,0.384472]
[1641475947925,2.00479,3372.6,3372.5,1.1753]
[1641475948227,2.00479,3372.6,3372.5,1.635282]
[1641475948627,2.00479,3372.6,3372.5,1.1753]
[1641475949732,2.00479,3372.6,3372.5,1.635282]
[1641475950843,2.00479,3372.6,3372.5,1.1753]
[1641475951439,2.00479,3372.6,3372.4,1.1753]
[1641475951838,6.00479,3372.6,3372.4,1.1753]
[1641475953346,6.77349,3372.6,3372.4,1.1753]
[1641475956143,6.77349,3372.6,3371.7,2.00479]
[1641475956344,6.77349,3372.6,3372.2,1.1753]
[1641475956743,6.77349,3372.6,3372.5,1.1753]
[1641475956943,6.77349,3372.6,3372.1,1.1753]
[1641475957144,8.25645445,3372.6,3372.5,1.1753]
[1641475959047,6.77349,3372.6,3372.5,1.1753]
[1641475959247,6.77349,3372.6,3372.5,1.635282]
[1641475959449,6.77349,3372.6,3372.5,1.1753]
[1641475959647,4.7687,3372.6,3372.5,1.1753]
[1641475960248,4.0,3372.6,3372.5,1.1753]
[1641475961648,2.00479,3372.9,3372.5,1.635282]
[1641475961848,2.00479,3372.9,3372.5,0.7312]
[1641475962249,4.743973,3372.8,3372.5,0.7312]
[1641475962749,2.00479,3372.6,3372.5,0.7312]
[1641475965151,6.748974,3372.6,3372.5,0.7312]
[1641475966051,6.748974,3372.6,3371.5,2.75219487]
[1641475966254,4.0,3372.4,3372.1,0.7312]
[1641475966452,4.0,3372.4,3372.2,0.459982]
[1641475968554,4.0,3372.4,3372.3,0.7312]
[1641475970761,4.0,3372.4,3372.3,1.191182]
[1641475971056,4.0,3372.4,3372.3,1.588364]
[1641475972459,1.48289847,3372.7,3372.3,1.588364]
[1641475972660,0.74650293,3373.1,3372.6,2.2312]
[1641475972857,0.99533724,3373.4,3373.0,0.7312]
[1641475973058,0.99533724,3373.4,3373.3,0.7312]
[1641475973258,0.99533724,3373.4,3373.3,1.191182]
[1641475974660,2.00479,3373.8,3373.4,0.00466276]
[1641475974860,2.00479,3373.8,3373.7,0.7312]
[1641475975360,2.00479,3373.8,3373.7,1.588364]
[1641475975560,2.00479,3373.8,3373.7,2.293764]
[1641475975761,2.00479,3373.8,3373.7,3.793764]
[1641475975961,2.00479,3373.8,3373.7,2.293764]
[1641475976861,1.24417155,3374.5,3373.7,3.793764]
[1641475977163,5.24417155,3374.5,3374.4,0.7312]
[1641475977361,2.73717741,3374.7,3374.4,1.906482]
[1641475977561,1.24417155,3374.7,3374.6,0.7312]
[1641475978262,1.24417155,3374.7,3374.6,1.191182]
[1641475978462,1.24417155,3374.7,3374.6,0.7312]
[1641475978865,4.0,3374.9,3374.6,0.7312]
[1641475979064,4.0,3374.9,3374.5,2.00479]
[1641475979464,1.48202599,3374.7,3374.5,2.00479]
[1641475979663,2.01442599,3374.7,3374.5,3.00479]
[1641475979863,4.209949,3374.6,3374.5,1.0]
[1641475980465,4.209949,3374.6,3374.2,2.00479]
[1641475980663,4.209949,3374.6,3374.3,0.7312]
[1641475980866,4.209949,3374.6,3374.5,0.7312]
[1641475981065,4.209949,3374.6,3374.5,1.191182]
[1641475981264,4.68129741,3374.6,3374.5,0.7312]
[1641475981467,0.47134841,3374.6,3374.5,1.128382]
[1641475982265,1.49300586,3375.2,3374.5,3.088364]
[1641475982464,4.841e-05,3375.3,3374.7,1.5]
[1641475982666,4.841e-05,3375.3,3375.2,0.7312]
[1641475982865,4.841e-05,3375.3,3375.2,3.51209]
[1641475983066,4.841e-05,3375.3,3375.2,4.356544]
[1641475983266,4.841e-05,3375.3,3375.2,4.753726]
[1641475983468,1.24417155,3375.4,3375.2,4.753726]
[1641475983670,7.155e-05,3375.4,3375.3,1.5]
[1641475983869,7.155e-05,3375.7,3375.3,1.5]
[1641475984168,7.155e-05,3375.7,3375.2,17.493726]
[1641475984169,7.155e-05,3375.7,3375.6,0.7312]
[1641475984470,7.155e-05,3375.7,3375.6,1.191182]
[1641475984667,7.155e-05,3375.7,3375.6,1.588364]
[1641475984867,7.155e-05,3375.7,3375.6,3.593154]
[1641475985868,1.49300586,3376.0,3375.6,3.593154]
[1641475986069,1.49300586,3376.0,3375.9,0.7312]
[1641475986271,1.49300586,3376.0,3375.9,2.588336]
[1641475986470,0.99778399,3376.2,3375.9,2.588336]
[1641475986871,0.99778399,3376.2,3376.1,2.73599]
[1641475987371,0.99778399,3376.2,3376.1,2.00479]
[1641475987571,0.99778399,3376.2,3375.6,2.00479]
[1641475987771,4.0,3376.1,3375.6,2.00479]
[1641475988273,1.49300586,3376.2,3375.9,0.7312]
[1641475988671,1.49300586,3376.2,3375.8,0.8393]
[1641475988872,1.49300586,3376.2,3376.1,2.00479]
[1641475989472,1.86625733,3376.3,3376.1,2.00479]
[1641475989873,1.86625733,3376.3,3376.2,1.0]
[1641475990474,1.86625733,3376.3,3376.2,1.459982]
[1641475990674,1.86625733,3376.3,3376.2,1.0]
[1641475991375,2.63505733,3376.3,3376.2,1.0]
[1641475991574,4.11640714,3376.3,3375.6,2.00479]
[1641475991774,0.7688,3375.9,3375.6,2.00479]
[1641475992280,4.0,3375.8,3375.6,2.00479]
[1641475992874,1.48159123,3375.7,3375.6,2.00479]
[1641475993874,1.88109629,3375.8,3375.6,3.195972]
[1641475994074,1.88109629,3375.8,3375.6,3.849072]
[1641475994476,1.88109629,3375.8,3375.7,0.397182]
[1641475994676,0.74639255,3375.9,3375.7,0.397182]
[1641475994881,0.99519007,3376.2,3375.9,0.25360745]
[1641475995276,0.7688,3376.1,3375.9,0.25360745]
[1641475995676,1.48144417,3376.0,3375.9,0.25360745]
[1641475995879,1.48144417,3376.0,3375.9,0.98480745]
[1641475996077,0.99519007,3376.4,3375.9,0.98480745]
[1641475996277,0.99519007,3376.4,3375.6,0.97914176]
[1641475996678,0.99519007,3376.4,3375.7,0.397182]
[1641475996977,2.00479,3376.0,3375.7,0.397182]
[1641475998280,2.00479,3376.0,3375.8,0.459982]
[1641475998480,2.00479,3376.0,3375.7,0.397182]
[1641475999280,2.00479,3376.0,3375.8,0.459982]
[1641475999480,2.00479,3376.0,3375.7,0.397182]
[1641475999681,2.00479,3376.0,3375.1,2.00479]
[1641476002487,2.00479,3376.0,3375.1,3.50479]
[1641476002785,1.00479,3376.0,3375.1,3.50479]
[1641476006690,1.00479,3376.0,3375.1,2.00479]
[1641476006890,1.00479,3376.0,3375.4,1.5]
[1641476007094,1.00479,3376.0,3375.5,0.781654]
[1641476011999,1.5,3375.9,3375.1,2.00479]
[1641476012201,4.0,3375.8,3375.1,2.00479]
[1641476012400,4.0,3375.8,3375.2,0.384472]
[1641476012603,1.5,3375.9,3375.2,0.384472]
[1641476013201,1.00479,3376.0,3375.2,0.384472]
[1641476013801,1.00479,3376.0,3375.3,0.397182]
[1641476016402,4.0,3375.8,3375.3,0.397182]
[1641476017301,4.0,3375.8,3375.2,0.384472]
[1641476017502,4.8095,3375.8,3375.2,0.384472]
[1641476018005,12.9817932,3375.3,3373.0,1.4817932]
[1641476018205,1.5,3374.3,3373.2,31.4349]
[1641476018406,2.1083,3374.3,3373.2,31.4349]
[1641476018603,2.1083,3374.3,3373.1,0.99844601]
[1641476019005,2.1083,3374.3,3373.0,1.4817932]